bitfinex/quotes_ETHUSD_20251117
["timestamp","ask_amount","ask_price","bid_price","bid_amount"]
[1763371908395,0.29229994,3210.4,3210.2,0.002]
[1763371908596,0.4854,3210.5,3210.2,0.002]
[1763371908790,0.29229993,3210.4,3210.2,0.002]
[1763371908993,0.4854,3210.5,3210.2,0.002]
[1763371909202,0.29229996,3210.4,3210.2,0.002]
[1763371909512,0.4854,3210.5,3210.2,0.002]
[1763371909714,0.29236918,3210.4,3210.2,0.002]
[1763371909863,0.4854,3210.5,3210.2,0.002]
[1763371910063,0.29236898,3210.4,3210.2,0.002]
[1763371910262,0.4854,3210.5,3210.2,0.002]
[1763371910464,0.29236896,3210.4,3210.2,0.002]
[1763371910765,0.4861,3210.3,3210.2,0.002]
[1763371912565,0.4853,3210.3,3210.2,0.002]
[1763371914773,0.9368,3210.3,3210.2,0.002]
[1763371914963,1.22918111,3210.3,3210.2,0.002]
[1763371917880,1.72564028,3210.3,3210.2,0.002]
[1763371919485,1.72664028,3210.3,3210.2,0.002]
[1763371920787,1.23018111,3210.3,3210.2,0.002]
[1763371921827,0.77868111,3210.3,3210.2,0.002]
[1763371927746,1.23018111,3210.3,3210.2,0.002]
[1763371929622,0.29338111,3210.3,3210.2,0.9572]
[1763371929972,0.29338111,3210.3,3210.2,0.5393]
[1763371930182,0.29332058,3210.3,3210.2,0.5393]
[1763371930478,0.001,3210.3,3210.2,4.6926106]
[1763371930665,0.001,3210.3,3210.2,6.2778514]
[1763371933047,0.001,3210.3,3210.2,9.39292211]
[1763371933245,0.001,3210.3,3210.2,6.2778514]
[1763371934460,0.001,3210.3,3210.2,2.5424408]
[1763371934668,0.001,3210.3,3210.2,2.1245408]
[1763371935500,0.0002,3210.3,3210.2,2.1245408]
[1763371936098,0.0002,3210.3,3210.2,2.5424408]
[1763371937402,0.4829,3210.3,3210.2,0.4535]
[1763371937593,0.9572,3210.3,3210.2,0.002]
[1763371938598,1.362704,3210.3,3210.2,0.002]
[1763371938795,1.65431719,3210.3,3210.2,0.002]
[1763371938998,1.52813572,3210.3,3210.2,0.002]
[1763371943406,0.0002,3210.3,3210.2,0.002]
[1763371944698,0.915725,3210.3,3210.2,0.002]
[1763371946338,0.915725,3210.3,3210.2,0.4199]
[1763371947399,0.915725,3210.3,3210.2,0.002]
[1763371947594,1.366925,3210.3,3210.2,0.002]
[1763371948838,2.0174275,3210.3,3210.2,0.002]
[1763371948989,6.1583421,3210.3,3210.2,0.002]
[1763371949189,6.44987715,3210.3,3210.2,0.002]
[1763371950141,2.71446655,3210.3,3210.2,0.002]
[1763371958625,0.914925,3210.3,3210.2,0.4199]
[1763371958826,0.914925,3210.3,3210.2,0.002]
[1763371959073,1.833225,3210.3,3210.2,0.002]
[1763371960147,2.53013872,3210.3,3210.2,0.002]
[1763371960349,3.15669365,3210.3,3210.2,0.002]
[1763371963231,3.82877227,3210.3,3210.2,0.002]
[1763371967842,0.405504,3210.1,3208.7,0.10989559]
[1763371968044,0.405504,3209.9,3208.7,0.10989559]
[1763371968257,0.95190972,3209.8,3208.7,0.10989559]
[1763371968543,0.29140972,3209.7,3208.7,0.10989559]
[1763371968753,0.4671,3209.7,3208.7,0.10989559]
[1763371969057,0.4671,3209.7,3208.7,1.24363639]
[1763371974081,0.4671,3209.7,3208.7,1.1337408]
[1763371974472,0.1934,3209.8,3208.7,1.1337408]
[1763371974779,0.29219951,3209.7,3208.7,1.1337408]
[1763371974943,0.6791,3209.8,3208.7,1.1337408]
[1763371975142,0.77789965,3209.7,3208.7,1.1337408]
[1763371975349,0.4857,3209.7,3208.7,1.1337408]
[1763371975576,0.4857,3209.6,3208.6,0.002]
[1763371975781,0.4857,3209.6,3208.6,1.1357408]
[1763371978179,0.4857,3209.6,3208.6,0.002]
[1763371978479,4.45262057,3209.5,3208.6,0.002]
[1763371978680,0.29236412,3209.4,3208.6,0.002]
[1763371978861,0.4857,3209.4,3208.6,0.002]
[1763371979058,0.29237886,3209.3,3208.6,0.002]
[1763371979260,0.4857,3209.4,3208.6,0.002]
[1763371979453,0.29232672,3209.3,3208.6,0.002]
[1763371979649,0.4857,3209.4,3208.6,0.002]
[1763371979978,0.2923267,3209.3,3208.6,0.002]
[1763371980203,0.4857,3209.4,3208.6,0.002]
[1763371980405,0.29232787,3209.3,3208.6,0.002]
[1763371980609,0.4857,3209.4,3208.6,0.002]
[1763371981716,0.405504,3209.6,3208.6,1.1357408]
[1763371982007,0.29229123,3209.5,3208.6,1.1357408]
[1763371982198,0.405504,3209.6,3208.6,1.1357408]
[1763371982199,0.29229123,3209.4,3208.6,1.1357408]
[1763371982387,0.405504,3209.6,3208.6,0.002]
[1763371982592,0.29226625,3209.5,3208.6,0.002]
[1763371982790,0.405504,3209.6,3208.6,0.002]
[1763371982791,0.29226625,3209.4,3208.6,0.002]
[1763371982984,0.405504,3209.6,3208.6,0.002]
[1763371983213,0.29226686,3209.5,3208.6,0.002]
[1763371983423,0.29226686,3209.4,3208.6,0.002]
[1763371983580,0.405504,3209.6,3208.6,0.002]
[1763371983782,0.77794766,3209.5,3208.6,0.002]
[1763371984081,0.29224766,3209.4,3208.6,0.002]
[1763371984280,0.4857,3209.4,3208.6,0.002]
[1763371990323,0.29235666,3209.3,3208.6,0.002]
[1763371990516,0.4857,3209.3,3208.6,0.002]
[1763371993949,0.405504,3209.6,3208.6,0.002]
[1763371994252,0.77806297,3209.5,3208.6,1.1357408]
[1763371994418,0.29236297,3209.4,3208.6,1.1357408]
[1763371994750,0.29236297,3209.3,3208.6,1.1357408]
[1763371994945,0.4857,3209.5,3208.6,1.1357408]
[1763371995252,0.29235487,3209.4,3208.6,1.1357408]
[1763371995429,0.29235487,3209.3,3208.6,1.1357408]
[1763371995730,0.4857,3209.5,3208.6,1.1357408]
[1763371995924,0.29235761,3209.4,3208.6,1.1357408]
[1763371996119,0.29235761,3209.3,3208.6,1.1357408]
[1763371996321,2.001,3209.7,3208.6,1.1357408]
[1763371996322,2.001,3209.7,3208.8,1.1337408]
[1763371996532,2.001,3209.7,3208.9,1.1337408]
[1763371996533,0.29236259,3209.6,3208.9,1.1337408]
[1763371996858,0.29236259,3209.5,3208.9,1.1337408]
[1763371997171,2.001,3209.7,3208.9,1.1337408]
[1763371997457,0.29235505,3209.6,3208.9,1.1337408]
[1763371997628,0.29235505,3209.5,3208.9,1.1337408]
[1763371997833,2.001,3209.7,3208.9,1.1337408]
[1763371998040,0.29235463,3209.6,3208.9,1.1337408]
[1763371998244,2.001,3209.7,3209.4,1.1337408]
[1763371998550,2.001,3209.7,3209.6,1.1337408]
[1763371998750,1.8218,3209.7,3209.6,1.1337408]
[1763371998967,0.001,3210.1,3209.6,5.27714157]
[1763371999166,0.001,3210.1,3210.0,8.60953434]
[1763371999351,0.001,3210.1,3210.0,4.87163757]
[1763371999572,0.001,3210.1,3210.0,5.80776993]
[1763371999744,0.001,3210.1,3210.0,9.5456667]
[1763372000182,0.915925,3210.3,3210.1,1.1337408]
[1763372000462,0.915925,3210.3,3210.2,8.60953434]
[1763372000872,2.0004,3210.7,3210.6,4.87163757]
[1763372002377,2.9602,3210.7,3210.6,1.1337408]
[1763372002964,2.0004,3210.7,3210.6,1.1337408]
[1763372003672,2.9602,3210.7,3210.6,1.1337408]
[1763372004274,2.4789,3210.7,3210.6,1.1337408]
[1763372004771,2.4781,3210.7,3210.6,1.1337408]
[1763372005141,2.9594,3210.7,3210.6,1.1337408]
[1763372005547,3.25584,3210.7,3210.6,1.1337408]
[1763372006603,2.77454,3210.7,3210.6,1.1337408]
[1763372006807,1.9996,3210.7,3210.6,4.87163757]
[1763372007372,1.9996,3210.7,3210.6,1.1337408]
[1763372007768,2.0006,3210.7,3210.6,1.1337408]
[1763372008100,2.4645,3210.7,3210.6,1.1337408]
[1763372008316,3.22196,3210.7,3210.6,1.1337408]
[1763372008969,3.22196,3210.7,3210.3,0.002]
[1763372009287,0.4639,3210.4,3210.3,0.002]
[1763372009693,0.928,3210.4,3210.3,0.002]
[1763372010416,2.0006,3210.7,3210.4,1.1337408]
[1763372010565,2.0006,3210.7,3210.6,3.73789677]
[1763372010770,2.0006,3210.7,3210.6,4.87163757]
[1763372016906,2.0006,3210.7,3210.6,1.1337408]
[1763372016907,2.4695,3210.7,3210.6,1.1337408]
[1763372017106,2.9649,3210.7,3210.6,1.1337408]
[1763372017312,2.0006,3210.7,3210.6,4.87163757]
[1763372018613,2.9301,3210.7,3210.6,1.1337408]
[1763372019018,2.4587,3210.7,3210.6,4.87163757]
[1763372020005,2.0006,3210.7,3210.6,4.87163757]
[1763372020201,2.0006,3210.7,3210.6,3.73789677]
[1763372020401,2.4587,3210.7,3210.6,3.73789677]
[1763372020601,2.9301,3210.7,3210.6,1.1337408]
[1763372023331,2.4587,3210.7,3210.6,1.1337408]
[1763372023536,2.0006,3210.7,3210.6,4.87163757]
[1763372027837,1.9998,3210.7,3210.6,4.87163757]
[1763372030121,2.9293,3210.7,3210.6,1.1337408]
[1763372032462,1.9998,3210.7,3210.6,1.1337408]
[1763372033624,2.4596,3210.7,3210.6,1.1337408]
[1763372033860,2.9426,3210.7,3210.6,1.1337408]
[1763372034164,1.9998,3210.7,3210.6,1.1337408]
[1763372034353,1.9998,3210.7,3210.6,4.86796027]
[1763372037478,2.4596,3210.7,3210.6,4.86796027]
[1763372037659,1.9998,3210.7,3210.6,4.86796027]
[1763372037854,1.9998,3210.7,3210.6,1.1337408]
[1763372038249,2.4596,3210.7,3210.6,1.1337408]
[1763372038661,1.9998,3210.7,3210.6,1.1337408]
[1763372038861,1.9998,3210.7,3210.6,4.86796027]
[1763372039462,1.9998,3210.7,3210.6,1.1337408]
[1763372039463,2.9426,3210.7,3210.6,1.1337408]
[1763372039885,1.9998,3210.7,3210.6,1.1337408]
[1763372040594,1.9998,3210.7,3210.6,4.86796027]
[1763372042162,2.4596,3210.7,3210.6,4.86796027]
[1763372042363,2.9426,3210.7,3210.6,1.1337408]
[1763372042670,3.25618,3210.7,3210.6,1.1337408]
[1763372043051,3.548345,3210.7,3210.5,0.002]
[1763372043250,3.548345,3210.7,3209.6,0.002]
[1763372043251,0.4598,3210.3,3209.6,0.002]
[1763372043454,0.405504,3209.9,3209.6,0.002]
[1763372043698,0.648,3209.7,3209.6,0.002]
[1763372043984,0.648,3209.7,3208.6,0.002]
[1763372043985,0.405504,3209.6,3208.6,0.002]
[1763372044187,0.888504,3209.6,3208.6,0.002]
[1763372044591,0.483,3209.5,3208.6,0.002]
[1763372045593,0.648,3208.7,3208.6,0.002]
[1763372046516,0.483,3208.9,3208.6,0.002]
[1763372046665,0.483,3209.5,3208.6,0.002]
[1763372047096,0.4598,3208.7,3208.6,0.002]
[1763372047281,0.483,3209.5,3208.6,0.002]
[1763372047576,0.483,3209.4,3208.6,0.002]
[1763372052021,0.4598,3208.7,3208.6,0.002]
[1763372052399,0.1882,3208.9,3208.6,0.002]
[1763372052804,0.4598,3208.7,3208.6,0.002]
[1763372053226,0.9428,3208.7,3208.6,0.002]
[1763372053728,0.4598,3208.7,3208.6,0.002]
[1763372053924,0.1882,3208.9,3208.6,0.002]
[1763372054125,0.483,3209.2,3208.6,0.002]
[1763372056551,0.4598,3208.7,3208.6,0.002]
[1763372057024,0.9428,3208.7,3208.6,0.002]
[1763372058926,0.4598,3208.7,3208.6,0.002]
[1763372060739,0.9565,3208.7,3208.6,0.002]
[1763372063044,0.405504,3209.2,3208.6,0.002]
[1763372063342,0.4907,3209.1,3208.6,0.002]
[1763372070123,0.4907,3209.2,3208.6,0.002]
[1763372073268,0.29259291,3209.1,3208.6,0.002]
[1763372073464,0.29259291,3209.0,3208.6,0.002]
[1763372073637,0.4907,3209.1,3208.6,0.002]
[1763372073838,0.2925928,3209.0,3208.6,0.002]
[1763372074038,0.1882,3209.3,3208.6,0.002]
[1763372074368,0.29258986,3209.2,3208.6,0.002]
[1763372074667,0.1882,3209.3,3208.6,0.002]
[1763372074845,0.29259068,3209.2,3208.6,0.002]
[1763372075043,0.1882,3209.3,3208.6,0.002]
[1763372075245,0.29259073,3209.2,3208.6,0.002]
[1763372075452,0.4896,3208.7,3208.6,0.002]
[1763372075964,0.9803,3208.7,3208.6,0.002]
[1763372080550,0.4907,3209.2,3208.6,0.002]
[1763372080754,0.29258851,3209.1,3208.6,0.002]
[1763372081065,0.4907,3209.2,3208.6,0.002]
[1763372081265,0.78329373,3209.1,3208.6,0.002]
[1763372081496,0.4907,3209.1,3208.6,0.002]
[1763372081669,0.4907,3209.0,3208.6,0.12691158]
[1763372083524,0.1882,3209.3,3208.6,0.12691158]
[1763372083831,0.29261332,3209.2,3208.6,0.12691158]
[1763372083993,0.29261332,3209.1,3208.6,0.12691158]
[1763372084206,0.1882,3209.3,3208.6,0.12691158]
[1763372084207,0.6789,3209.3,3208.6,0.12691158]
[1763372084529,0.29262927,3209.2,3208.6,0.12691158]
[1763372084677,0.29262927,3209.1,3208.6,0.12691158]
[1763372084880,0.6789,3209.3,3208.6,0.12691158]
[1763372085112,0.29262885,3209.2,3208.6,0.12691158]
[1763372085308,0.6789,3209.3,3208.6,0.12691158]
[1763372085682,0.6789,3209.3,3208.6,0.002]
[1763372086124,0.6789,3209.3,3208.7,0.6789]
[1763372086629,0.001,3209.4,3208.7,0.6789]
[1763372086829,0.001,3209.4,3208.9,1.1337408]
[1763372087218,0.4917,3209.4,3208.9,1.1337408]
[1763372087394,0.4896,3209.0,3208.6,1.1357408]
[1763372087594,0.4896,3209.0,3208.9,0.4917]
[1763372087789,0.9803,3209.0,3208.9,0.4917]
[1763372088317,0.4896,3209.0,3208.9,0.4917]
[1763372088634,0.4907,3209.3,3208.9,0.4917]
[1763372091018,0.4896,3209.0,3208.9,0.4917]
[1763372091619,0.9877,3209.0,3208.9,0.4917]
[1763372092624,0.9877,3209.0,3208.6,0.002]
[1763372092828,0.4521,3208.7,3208.6,0.002]
[1763372093230,0.9502,3208.7,3208.6,0.002]
[1763372093948,1.2427618,3208.7,3208.6,0.002]
[1763372094253,1.6482658,3208.7,3208.6,0.002]
[1763372094424,1.81309238,3208.7,3208.6,0.002]
[1763372096850,1.81229238,3208.7,3208.6,0.002]
[1763372113899,1.81329238,3208.7,3208.6,0.002]
[1763372115785,1.355704,3208.6,3208.1,0.005]
[1763372115984,0.405504,3208.1,3206.5,0.12498964]
[1763372116201,1.041204,3207.2,3206.5,0.12498964]
[1763372116394,1.3337658,3207.2,3205.4,1.405]
[1763372116560,1.8318658,3207.2,3205.7,0.28805217]
[1763372116763,5.57674694,3207.2,3205.8,3.74488114]
[1763372116961,6.13442163,3207.2,3205.7,0.12501855]
[1763372117161,6.13442163,3207.2,3205.5,3.74488114]
[1763372117458,7.26816243,3207.2,3205.5,0.12502598]
[1763372117674,7.26816243,3207.2,3204.9,3.74488114]
[1763372117675,1.5392448,3207.1,3204.9,3.74488114]
[1763372117859,1.5392448,3207.1,3204.4,0.16310471]
[1763372117860,1.077104,3206.2,3205.2,1.1337408]
[1763372118056,1.077104,3206.2,3205.4,1.1337408]
[1763372118260,1.545804,3206.2,3205.1,0.005]
[1763372118495,2.07487251,3206.2,3205.1,0.005]
[1763372118689,2.07487251,3206.2,3205.1,1.1387408]
[1763372118895,2.07487251,3206.2,3205.1,0.005]
[1763372119073,1.545804,3206.2,3205.1,0.005]
[1763372119293,0.405504,3206.1,3205.1,0.005]
[1763372119507,1.077104,3205.2,3205.1,0.005]
[1763372119874,1.545004,3205.2,3205.1,0.005]
[1763372126531,7.22457265,3205.2,3205.1,0.005]
[1763372126736,8.23574762,3205.2,3205.1,0.005]
[1763372126919,3.68991977,3205.2,3205.1,0.005]
[1763372127239,2.9674625,3205.2,3205.1,0.005]
[1763372127388,6.08739261,3205.2,3205.1,0.005]
[1763372127595,0.405504,3205.1,3204.1,0.005]
[1763372127828,1.074604,3204.2,3204.1,0.005]
[1763372128339,1.529304,3204.2,3204.1,0.005]
[1763372128545,0.405504,3204.2,3204.1,0.005]
[1763372128839,1.339404,3204.2,3204.1,0.005]
[1763372130236,0.884704,3204.2,3204.1,0.005]
[1763372130392,0.4792,3204.2,3204.1,0.005]
[1763372130621,1.339404,3204.2,3204.1,0.005]
[1763372131360,1.82934502,3204.2,3204.1,0.005]
[1763372131556,2.01227952,3204.2,3204.1,0.005]
[1763372131731,1.55757952,3204.2,3204.1,0.005]
[1763372132061,0.1899,3204.5,3204.1,0.005]
[1763372132359,0.6462,3204.5,3204.1,0.005]
[1763372132722,0.405504,3204.4,3204.1,0.005]
[1763372132917,0.6462,3204.5,3204.1,0.005]
[1763372133228,0.1899,3204.5,3204.1,0.005]
[1763372133422,0.405504,3204.7,3204.1,0.005]
[1763372133956,0.1884,3204.9,3204.1,0.005]
[1763372134556,0.861804,3204.8,3204.1,0.005]
[1763372135426,0.405504,3204.8,3204.1,0.005]
[1763372135625,0.4563,3204.7,3204.1,0.005]
[1763372139256,0.4896,3204.2,3204.1,0.005]
[1763372139850,0.405504,3204.4,3204.1,0.005]
[1763372140546,0.405504,3204.7,3204.1,0.005]
[1763372140940,0.405504,3204.6,3204.1,0.005]
[1763372141149,0.895104,3204.2,3204.1,0.005]
[1763372141352,1.351404,3204.2,3204.1,0.005]
[1763372141551,0.405504,3204.2,3204.1,0.005]
[1763372141834,0.895104,3204.2,3204.1,0.005]
[1763372142169,1.351404,3204.2,3204.1,0.005]
[1763372142378,1.64079221,3204.2,3204.1,0.005]
[1763372142673,1.80487509,3204.2,3204.1,0.005]
[1763372142976,0.85817509,3204.2,3204.1,0.005]
[1763372143274,0.69409587,3204.2,3204.1,0.005]
[1763372144376,0.28939187,3204.2,3202.8,1.1337408]
[1763372144675,0.28939187,3204.1,3202.8,1.1337408]
[1763372144838,0.28939187,3204.0,3203.2,1.1337408]
[1763372145039,0.405504,3204.6,3203.2,1.1337408]
[1763372145238,0.405504,3204.4,3203.2,1.1337408]
[1763372145438,0.405504,3204.2,3203.2,1.1337408]
[1763372145708,0.28939187,3204.1,3203.2,1.1337408]
[1763372145862,0.28939187,3204.0,3203.2,1.1337408]
[1763372146195,0.28939187,3203.9,3203.2,1.1337408]
[1763372146366,0.28939187,3203.8,3203.2,1.1337408]
[1763372146562,0.66761272,3204.3,3202.8,1.1337408]
[1763372146874,0.405504,3204.1,3202.8,1.1337408]
[1763372147069,0.29133157,3204.0,3202.8,1.1337408]
[1763372147270,0.29133157,3203.9,3202.8,1.1337408]
[1763372147473,0.405504,3204.1,3202.8,1.1337408]
[1763372147474,0.29133157,3203.8,3202.8,1.1337408]
[1763372147699,0.405504,3204.1,3202.8,1.1337408]
[1763372147700,0.29133157,3203.7,3202.8,1.1337408]
[1763372147899,0.29133157,3203.6,3202.8,1.1337408]
[1763372148195,0.29133157,3203.5,3202.8,1.1337408]
[1763372148396,0.405504,3204.2,3202.8,1.1337408]
[1763372148602,0.405504,3204.0,3202.8,1.1337408]
[1763372148806,0.96471998,3203.9,3202.8,1.1337408]
[1763372148970,0.29198858,3203.8,3202.8,1.1337408]
[1763372149171,0.29198858,3203.7,3202.8,1.1337408]
[1763372149424,0.29198858,3203.6,3202.8,1.1337408]
[1763372149672,0.29198858,3203.5,3202.8,1.1337408]
[1763372149893,0.29198858,3203.4,3202.8,1.1337408]
[1763372150207,0.29198858,3203.3,3202.8,1.1337408]
[1763372150499,0.84032034,3204.2,3203.2,1.1337408]
[1763372150671,0.96642995,3204.1,3203.2,1.1337408]
[1763372151002,0.84032034,3204.2,3203.2,1.1337408]
[1763372151003,0.96642995,3204.0,3203.2,1.1337408]
[1763372151202,0.84032034,3204.2,3203.2,1.1337408]
[1763372151203,0.96642995,3203.9,3203.2,1.1337408]
[1763372151403,0.96642995,3203.8,3203.2,1.1337408]
[1763372151703,0.29250926,3203.7,3203.2,1.1337408]
[1763372151890,0.29250926,3203.6,3203.2,1.1337408]
[1763372152199,0.29250926,3203.5,3203.2,1.1337408]
[1763372152404,0.29250926,3203.4,3203.2,1.1337408]
[1763372152602,0.29250926,3203.3,3203.2,1.1337408]
[1763372152805,0.29250926,3203.3,3202.8,0.002]
[1763372153011,0.29250926,3203.2,3202.8,0.002]
[1763372153174,1.07973034,3203.8,3202.8,0.002]
[1763372153374,0.96694397,3203.7,3202.8,0.002]
[1763372153575,0.29271763,3203.6,3202.8,0.002]
[1763372153798,0.29271763,3203.5,3202.8,0.002]
[1763372154001,0.29271763,3203.4,3202.8,0.002]
[1763372154208,0.29271763,3203.3,3202.8,0.002]
[1763372154505,0.67456407,3204.0,3202.8,0.002]
[1763372154708,0.96735608,3203.9,3202.8,0.002]
[1763372154908,0.405504,3203.7,3202.8,0.002]
[1763372155071,0.29279201,3203.6,3202.8,0.002]
[1763372155271,0.29279201,3203.5,3202.8,0.002]
[1763372155503,0.29279201,3203.4,3202.8,0.002]
[1763372155671,0.29279201,3203.3,3202.8,0.002]
[1763372156009,0.29279201,3203.2,3202.8,0.002]
[1763372156168,0.29279201,3203.1,3202.8,0.002]
[1763372156372,0.29279201,3203.0,3202.8,0.002]
[1763372156573,0.67502607,3203.6,3202.8,0.002]
[1763372156773,0.96802632,3203.5,3202.8,0.002]
[1763372156969,0.96802632,3203.4,3202.8,0.002]
[1763372157208,0.29300025,3203.3,3202.8,0.002]
[1763372157408,0.29300025,3203.2,3202.8,0.002]
[1763372157602,0.29300025,3203.1,3202.8,0.002]
[1763372157917,0.29300025,3203.0,3202.8,0.002]
[1763372158116,0.67505689,3203.4,3202.8,0.002]
[1763372158421,0.29301282,3203.3,3202.8,0.002]
[1763372158573,0.29301282,3203.2,3202.8,0.002]
[1763372158770,0.29301282,3203.1,3202.8,0.002]
[1763372158980,0.29301282,3203.0,3202.8,0.002]
[1763372159186,0.67502331,3203.7,3202.8,0.002]
[1763372159411,0.9680165,3203.6,3202.8,0.002]
[1763372159614,0.9680165,3203.5,3202.8,0.002]
[1763372159916,0.29299319,3203.4,3202.8,0.002]
[1763372160112,0.29299319,3203.3,3202.8,0.002]
[1763372160286,0.29299319,3203.2,3202.8,0.002]
[1763372160479,0.29299319,3203.1,3202.8,0.002]
[1763372160690,0.29299319,3203.0,3202.8,0.002]
[1763372160895,0.67509904,3203.4,3202.8,0.002]
[1763372161127,0.29301589,3203.3,3202.8,0.002]
[1763372161327,0.84032034,3203.8,3202.8,0.03322268]
[1763372161328,0.29301589,3203.2,3202.8,0.03322268]
[1763372161632,0.29301589,3203.1,3202.8,0.002]
[1763372161818,0.29301589,3203.0,3202.8,0.002]
[1763372162018,0.67517664,3203.7,3202.8,0.002]
[1763372162216,0.96823684,3203.6,3202.8,0.002]
[1763372162421,0.96823684,3203.5,3202.8,0.002]
[1763372162607,0.2930602,3203.4,3202.8,0.002]
[1763372162807,0.2930602,3203.3,3202.8,0.002]
[1763372163026,0.2930602,3203.2,3202.8,0.002]
[1763372163234,0.2930602,3203.1,3202.8,0.002]
[1763372163430,0.6751363,3203.7,3202.8,0.002]
[1763372163635,0.96817914,3203.6,3202.8,0.002]
[1763372163831,0.96817914,3203.5,3202.8,0.002]
[1763372164038,0.29304284,3203.4,3202.8,0.002]
[1763372164224,0.29304284,3203.3,3202.8,0.002]
[1763372164548,0.29304284,3203.2,3202.8,0.002]
[1763372164701,0.29304284,3203.1,3202.8,0.002]
[1763372164901,0.67514193,3203.7,3202.8,0.002]
[1763372165113,0.96818574,3203.6,3202.8,0.002]
[1763372165316,0.29304381,3203.5,3202.8,0.002]
[1763372165545,0.29304381,3203.4,3202.8,0.002]
[1763372165703,0.29304381,3203.3,3202.8,0.002]
[1763372166049,0.29224381,3203.2,3202.8,0.002]
[1763372166255,0.67514405,3203.7,3202.8,0.002]
[1763372166460,0.67514405,3203.6,3202.8,0.002]
[1763372166752,1.24582434,3204.2,3202.8,0.03322268]
[1763372166901,0.67509653,3204.1,3202.8,0.03322268]
[1763372167101,0.67509653,3204.0,3202.8,0.002]
[1763372167303,0.67509653,3203.9,3202.8,0.002]
[1763372167600,0.67509653,3203.8,3202.8,0.002]
[1763372167802,0.67509653,3203.7,3202.8,0.002]
[1763372168026,0.6508,3203.9,3202.8,0.002]
[1763372168339,1.13378192,3203.8,3202.8,0.002]
[1763372168504,0.67518192,3203.7,3202.8,0.002]
[1763372168832,0.67518192,3203.6,3202.8,0.002]
[1763372169050,0.4586,3203.8,3202.8,0.002]
[1763372169201,1.08071335,3203.7,3202.8,0.002]
[1763372169396,0.405504,3203.7,3202.8,0.002]
[1763372170114,0.4586,3203.8,3202.8,0.002]
[1763372170324,0.67522234,3203.7,3202.8,0.002]
[1763372170538,0.4586,3203.8,3202.8,0.002]
[1763372170700,0.67522245,3203.7,3202.8,0.002]
[1763372170902,0.405504,3203.7,3202.8,0.002]
[1763372171134,0.6512,3202.9,3202.8,0.002]
[1763372171433,0.405504,3203.6,3202.8,0.002]
[1763372171736,0.459,3202.9,3202.8,0.002]
[1763372172096,0.67517123,3203.7,3202.8,0.002]
[1763372172299,0.405504,3203.4,3202.8,0.002]
[1763372172710,0.459,3202.9,3202.8,0.002]
[1763372173201,0.405504,3203.3,3202.8,0.002]
[1763372173628,0.405504,3203.2,3202.8,0.002]
[1763372173812,0.4586,3203.2,3202.8,0.002]
[1763372174306,0.459,3202.9,3202.8,0.002]
[1763372174931,0.4586,3203.2,3202.8,0.002]
[1763372175230,0.405504,3203.6,3202.8,0.002]
[1763372175433,0.405504,3203.4,3202.8,0.002]
[1763372175610,0.405504,3203.3,3202.8,0.002]
[1763372176025,0.4586,3203.2,3202.8,0.002]
[1763372176420,0.002,3203.8,3202.8,0.002]
[1763372176421,0.405504,3203.3,3202.8,0.002]
[1763372176826,0.4586,3203.3,3202.8,1.1357408]
[1763372178328,0.4849,3202.9,3202.8,0.002]
[1763372178649,0.6767,3202.9,3202.8,0.002]
[1763372178851,0.4849,3202.9,3202.8,0.002]
[1763372179847,0.405504,3203.5,3202.8,0.002]
[1763372179848,0.405504,3203.5,3202.9,1.1337408]
[1763372180039,0.405504,3203.3,3202.9,1.1337408]
[1763372180236,0.4849,3203.0,3202.8,0.002]
[1763372180635,0.4529,3203.2,3202.8,0.002]
[1763372181220,0.6767,3202.9,3202.8,0.002]
[1763372181620,1.1713,3202.9,3202.8,0.002]
[1763372183053,0.6767,3202.9,3202.8,0.002]
[1763372183234,0.407504,3203.8,3202.8,0.002]
[1763372183430,0.405504,3203.6,3202.9,1.1337408]
[1763372183636,0.405504,3203.4,3202.9,1.1337408]
[1763372183831,0.2928222,3203.3,3203.1,3.75158697]
[1763372184046,0.4946,3203.7,3203.1,3.75158697]
[1763372184241,0.29281751,3203.6,3203.1,3.75158697]
[1763372184554,0.4946,3203.7,3202.8,0.002]
[1763372184555,0.29281751,3203.5,3203.4,3.75158697]
[1763372184744,0.29281751,3203.5,3202.9,1.1337408]
[1763372184943,0.4946,3203.7,3202.8,0.002]
[1763372185154,0.29283536,3203.6,3202.8,0.002]
[1763372185457,0.29283536,3203.5,3202.8,0.002]
[1763372185655,0.4946,3203.7,3202.8,0.002]
[1763372185856,0.29285499,3203.6,3202.8,0.002]
[1763372186060,0.29285499,3203.5,3202.8,0.002]
[1763372186260,0.4946,3203.7,3202.8,0.002]
[1763372186562,0.29286303,3203.6,3202.8,0.002]
[1763372186729,0.29286303,3203.5,3202.8,0.002]
[1763372187056,0.4946,3203.7,3202.8,0.002]
[1763372187262,0.2928644,3203.6,3202.8,0.002]
[1763372187578,0.4946,3203.7,3202.8,0.002]
[1763372187579,0.405504,3203.4,3202.8,0.002]
[1763372187745,0.6844,3202.9,3202.8,0.002]
[1763372188255,0.4917,3202.9,3202.8,0.002]
[1763372188624,1.179,3202.9,3202.8,0.002]
[1763372189077,1.583704,3202.9,3202.8,0.002]
[1763372189256,2.0349987,3202.9,3202.8,0.002]
[1763372191585,2.0349987,3202.9,3202.4,0.001]
[1763372191586,6.24453602,3202.8,3202.4,0.001]
[1763372191754,6.24453602,3202.8,3201.1,0.005]
[1763372191755,0.4917,3202.2,3201.1,0.005]
[1763372192084,0.405504,3202.0,3201.1,0.005]